bitfinex/quotes_SOLUSD_20240703
["timestamp","ask_amount","ask_price","bid_price","bid_amount"]
[1720040650320,20.0,140.43,140.39,0.34]
[1720040651127,20.0,140.43,140.39,7.463]
[1720040651338,7.1205,140.44,140.39,0.34]
[1720040651513,20.0,140.43,140.39,0.34]
[1720040651844,27.121,140.43,140.39,0.34]
[1720040652347,20.0,140.43,140.39,0.34]
[1720040652708,30.74,140.49,140.36,6.6125]
[1720040652709,35.5941,140.48,140.36,6.6125]
[1720040652926,30.74,140.44,140.36,6.6125]
[1720040653131,7.1229,140.4,140.36,6.6125]
[1720040653635,7.1233,140.39,140.36,6.6125]
[1720040653852,7.1243,140.37,140.34,15.5592]
[1720040654009,27.35,140.36,140.29,22.3832]
[1720040654212,7.1264,140.33,140.29,22.3832]
[1720040654435,27.35,140.32,140.29,22.3832]
[1720040654754,27.35,140.3,140.27,7.41434179]
[1720040654940,27.35,140.3,140.25,22.3832]
[1720040655125,27.35,140.27,140.25,22.3832]
[1720040655433,27.35,140.29,140.25,22.3832]
[1720040655834,20.0,140.28,140.25,22.3832]
[1720040656214,7.1276,140.3,140.25,22.3832]
[1720040656417,20.0,140.29,140.25,22.3832]
[1720040656818,27.1281,140.29,140.25,22.3832]
[1720040657212,20.0,140.29,140.25,29.5132]
[1720040657426,7.127,140.31,140.26,0.17]
[1720040657742,20.0,140.3,140.26,0.17]
[1720040658115,7.1256,140.34,140.28,7.1285]
[1720040658315,7.1256,140.34,140.29,0.34]
[1720040658527,30.81,140.38,140.29,0.34]
[1720040658815,7.41072873,140.39,140.32,7.1265]
[1720040659017,6.1791,140.41,140.33,28.8659]
[1720040659243,17.8007,140.45,140.35,13.5114]
[1720040659421,17.8007,140.45,140.35,6.3865]
[1720040659622,17.8007,140.45,140.36,0.34]
[1720040660325,7.1221,140.41,140.36,0.34]
[1720040660529,7.1216,140.42,140.36,7.4644]
[1720040660729,20.0,140.41,140.36,7.4644]
[1720040661342,20.0,140.41,140.36,0.34]
[1720040661533,27.1221,140.41,140.36,0.34]
[1720040661846,7.1216,140.42,140.36,7.4645]
[1720040662145,7.1209,140.43,140.37,7.1238]
[1720040662450,17.8007,140.45,140.36,18.1509]
[1720040662451,17.8007,140.45,140.38,0.17]
[1720040662752,7.1221,140.41,140.36,0.34]
[1720040663251,7.1215,140.42,140.36,7.4644]
[1720040663430,7.121,140.43,140.37,7.1237]
[1720040663640,7.121,140.43,140.38,0.34]
[1720040664030,30.81,140.46,140.38,0.34]
[1720040664556,7.121,140.43,140.38,0.34]
[1720040665049,20.0,140.42,140.38,0.34]
[1720040665630,7.122,140.41,140.38,0.34]
[1720040665945,20.0,140.42,140.37,0.34]
[1720040666139,7.1221,140.41,140.36,0.34]
[1720040666353,17.8014,140.44,140.36,0.34]
[1720040666647,20.0,140.43,140.37,17.8097]
[1720040666825,7.121,140.43,140.38,0.34]
[1720040667039,20.0,140.42,140.38,0.34]
[1720040667741,27.1215,140.42,140.38,0.34]
[1720040667926,20.0,140.42,140.38,0.34]
[1720040670548,30.81,140.49,140.4,7.1221]
[1720040670754,7.1185,140.48,140.41,0.34]
[1720040671045,7.119,140.47,140.42,16.4152]
[1720040671258,7.119,140.47,140.43,0.34]
[1720040671632,7.1183,140.49,140.43,18.1421]
[1720040671855,7.1183,140.49,140.43,25.2628]
[1720040672160,14.52090768,140.5,140.43,18.1421]
[1720040672469,14.52090768,140.5,140.44,7.1203]
[1720040672668,14.52090768,140.5,140.45,0.34]
[1720040673134,7.118,140.49,140.45,0.34]
[1720040673334,7.118,140.49,140.46,0.17]
[1720040673640,7.118,140.49,140.44,0.34]
[1720040674052,20.0,140.48,140.44,0.34]
[1720040674254,20.0,140.48,140.44,7.4603]
[1720040674459,7.1176,140.5,140.44,7.4603]
[1720040674751,20.0,140.49,140.44,7.4604]
[1720040675234,37.2271,140.56,140.44,7.4604]
[1720040675435,7.118,140.49,140.44,0.34]
[1720040675958,37.2271,140.56,140.44,7.4602]
[1720040675959,20.0,140.48,140.44,7.4602]
[1720040676158,37.2271,140.56,140.44,7.4602]
[1720040676468,17.7919,140.52,140.44,0.34]
[1720040676846,7.1187,140.48,140.44,0.34]
[1720040677030,7.1188,140.48,140.44,0.34]
[1720040677662,7.1181,140.49,140.44,0.34]
[1720040678157,20.0,140.48,140.44,0.34]
[1720040679049,20.0,140.48,140.45,7.1196]
[1720040679239,7.118,140.49,140.46,0.34]
[1720040679435,20.0,140.48,140.43,6.0048]
[1720040679654,7.1201,140.45,140.4,7.122]
[1720040679830,17.7949,140.49,140.39,6.4167]
[1720040679831,27.31,140.46,140.39,6.4167]
[1720040680037,27.31,140.44,140.39,6.4167]
[1720040680332,27.31,140.4,140.34,21.9157]
[1720040680751,34.4326,140.4,140.34,21.9157]
[1720040681065,27.31,140.4,140.34,29.0411]
[1720040681272,27.31,140.4,140.35,7.1246]
[1720040681761,7.1221,140.41,140.35,7.1246]
[1720040681967,7.1221,140.41,140.36,0.34]
[1720040682143,20.0,140.4,140.36,0.34]
[1720040682539,20.0,140.4,140.36,7.4644]
[1720040682735,7.1211,140.43,140.37,7.1239]
[1720040682965,48.5708,140.45,140.38,7.4633]
[1720040682966,20.0,140.42,140.38,7.4633]
[1720040683143,20.0,140.42,140.36,25.275]
[1720040683144,7.1215,140.42,140.36,25.275]
[1720040683342,20.0,140.41,140.39,0.17]
[1720040683547,20.0,140.41,140.36,18.1507]
[1720040683748,7.1207,140.44,140.38,24.9317]
[1720040683969,20.0,140.43,140.39,0.34]
[1720040684267,7.12,140.45,140.39,7.4626]
[1720040684780,20.0,140.44,140.39,7.4626]
[1720040685066,20.0,140.44,140.4,7.1224]
[1720040685269,7.1195,140.46,140.41,0.34]
[1720040685476,7.1205,140.44,140.41,0.34]
[1720040686143,35.5945,140.48,140.35,17.8119]
[1720040686342,30.77,140.45,140.35,17.8119]
[1720040686752,7.122,140.41,140.35,24.9365]
[1720040686958,48.5706,140.45,140.35,17.8119]
[1720040687264,35.5945,140.48,140.35,17.8119]
[1720040687453,7.1243,140.37,140.34,21.9157]
[1720040687638,7.1235,140.38,140.32,24.9416]
[1720040687963,7.1259,140.34,140.31,6.504]
[1720040688259,7.1261,140.33,140.3,15.2265]
[1720040688438,7.1257,140.34,140.3,15.2265]
[1720040688642,7.1249,140.36,140.3,15.2265]
[1720040689067,20.0,140.35,140.3,22.354]
[1720040689847,20.0,140.35,140.31,7.1269]
[1720040690158,20.0,140.36,140.31,7.1269]
[1720040690464,27.1245,140.36,140.3,33.0449]
[1720040690659,20.0,140.36,140.31,7.1269]
[1720040690867,20.0,140.36,140.3,33.0449]
[1720040691068,20.0,140.35,140.31,0.34]
[1720040692482,27.125,140.35,140.31,0.34]
[1720040692650,20.0,140.35,140.31,7.467]
[1720040693779,20.0,140.35,140.32,7.1264]
[1720040693982,20.0,140.36,140.33,0.34]
[1720040694285,27.1245,140.36,140.31,0.34]
[1720040694487,20.0,140.36,140.31,7.467]
[1720040695256,7.1247,140.36,140.31,0.34]
[1720040695455,20.0,140.35,140.31,0.34]
[1720040695658,27.1251,140.35,140.31,0.34]
[1720040696690,27.1253,140.35,140.31,0.34]
[1720040696887,20.0,140.35,140.28,6.504]
[1720040697092,17.8157,140.33,140.24,6.0022]
[1720040697307,7.129,140.28,140.24,6.0022]
[1720040697460,7.1293,140.27,140.24,6.0022]
[1720040697660,7.1287,140.28,140.24,6.0022]
[1720040697960,7.1291,140.27,140.22,22.1731]
[1720040698179,17.8179,140.31,140.22,15.0416]
[1720040698180,7.1299,140.26,140.22,15.0416]
[1720040698580,7.1292,140.27,140.22,15.0416]
[1720040698985,20.0,140.26,140.22,15.0416]
[1720040699608,20.0,140.26,140.22,22.1728]
[1720040699777,7.1282,140.29,140.23,7.1307]
[1720040699985,27.1287,140.28,140.22,22.1731]
[1720040700293,27.1287,140.28,140.23,0.34]
[1720040700819,20.0,140.28,140.23,0.34]
[1720040701008,20.0,140.27,140.23,0.34]
[1720040701187,21.4,140.3,140.21,0.8370206]
[1720040701388,7.1316,140.22,140.21,0.8370206]
[1720040701599,20.0,140.22,140.21,0.8370206]
[1720040702982,27.1316,140.22,140.21,0.8370206]
[1720040703925,20.0,140.22,140.21,0.8370206]
[1720040704994,27.1316,140.22,140.21,0.8370206]
[1720040709919,54.5516,140.22,140.21,0.8370206]
[1720040710799,17.8305,140.21,140.12,7.1367]
[1720040711000,27.42,140.18,140.12,7.1367]
[1720040711518,34.5538,140.18,140.12,7.1367]
[1720040711733,27.42,140.18,140.11,29.0699]
[1720040712018,27.1343,140.17,140.11,29.0702]
[1720040713326,27.1343,140.17,140.12,7.4767]
[1720040714314,27.42,140.14,140.07,6.8488206]
[1720040714632,6.2917,140.19,140.07,13.9877206]
[1720040714633,27.42,140.12,140.07,13.9877206]
[1720040715502,27.42,140.12,140.08,7.1386]
[1720040715695,27.42,140.12,140.09,0.17]
[1720040716025,7.1358,140.14,140.09,0.34]
[1720040716223,7.1348,140.16,140.1,7.1372]
[1720040716438,21.565,140.24,140.12,100.0]
[1720040716597,27.42,140.21,140.13,15.7648]
[1720040716797,7.1319,140.22,140.16,7.1343]
[1720040717001,7.1322,140.21,140.17,0.34]
[1720040717410,27.42,140.21,140.17,0.34]
[1720040717621,27.42,140.21,140.16,7.4743]
[1720040717940,5.72914201,140.26,140.16,0.34]
[1720040718232,27.42,140.26,140.16,0.34]
[1720040718620,6.2917,140.27,140.17,100.0]
[1720040718819,27.42,140.29,140.24,7.1302]
[1720040719023,7.1283,140.29,140.25,0.34]
[1720040719625,7.1283,140.29,140.24,0.34]
[1720040719935,7.1287,140.28,140.24,0.34]
[1720040720109,23.64642813,140.33,140.23,7.471]
[1720040720110,7.1281,140.29,140.23,7.471]
[1720040720305,7.1276,140.3,140.24,8.25782275]
[1720040720511,20.0,140.29,140.25,0.34]
[1720040720732,20.0,140.29,140.25,1.4672194]
[1720040721129,6.30589479,140.34,140.25,0.34]
[1720040721307,7.1264,140.33,140.26,0.34]
[1720040721505,7.1264,140.33,140.27,7.1287]
[1720040721726,7.1264,140.33,140.28,0.34]
[1720040722431,17.8083,140.39,140.28,0.34]
[1720040723233,7.1252,140.35,140.29,7.1279]
[1720040723439,7.1252,140.35,140.3,0.34]
[1720040724115,7.1245,140.36,140.3,7.4674]
[1720040724427,7.125,140.35,140.3,0.34]
[1720040724612,7.1255,140.34,140.3,0.34]
[1720040725328,7.1254,140.35,140.3,0.34]
[1720040725624,17.8083,140.39,140.3,0.34]
[1720040725829,6.6177,140.4,140.3,0.34]
[1720040725830,17.8106,140.37,140.3,0.34]
[1720040726011,20.0,140.36,140.3,0.34]
[1720040726410,7.1259,140.34,140.3,0.34]
[1720040726623,7.1252,140.35,140.3,0.34]
[1720040727122,17.8092,140.38,140.3,0.34]
[1720040727328,7.1261,140.33,140.27,7.1287]
[1720040727621,17.8092,140.38,140.25,40.2549]
[1720040727827,7.1267,140.32,140.26,7.1294]
[1720040728737,7.1267,140.32,140.27,0.17]
[1720040728905,7.1267,140.32,140.27,7.299]
[1720040729329,27.70589479,140.38,140.25,22.4303]
[1720040729515,35.6284,140.34,140.25,22.4303]
[1720040729848,7.129,140.28,140.25,22.4303]
[1720040730000,48.6331,140.35,140.25,22.4303]
[1720040730203,7.1272,140.31,140.25,29.5602]
[1720040730406,20.0,140.3,140.25,29.5602]
[1720040730603,20.0,140.3,140.26,17.8237]
[1720040730824,20.0,140.3,140.25,29.5599]
[1720040731012,7.1281,140.29,140.25,22.4303]
[1720040731222,7.1287,140.28,140.25,22.4303]
[1720040731416,7.1282,140.29,140.25,22.4303]
[1720040731613,7.1277,140.3,140.26,0.34]
[1720040731814,20.0,140.29,140.26,0.34]
[1720040733710,7.1274,140.31,140.26,7.4695]
[1720040733909,20.0,140.3,140.26,7.4694]
[1720040734526,20.0,140.3,140.26,0.34]
[1720040734939,7.1268,140.32,140.26,7.4694]
[1720040735234,20.0,140.29,140.26,7.4694]
[1720040735437,7.1271,140.31,140.26,7.4694]
[1720040735605,20.0,140.3,140.26,7.4694]
[1720040735809,30.82,140.35,140.26,0.34]
[1720040736009,7.1251,140.35,140.29,7.1277]
[1720040736221,7.1251,140.35,140.3,0.34]
[1720040736418,25.2125788,140.38,140.3,0.34]
[1720040736823,17.8116,140.36,140.29,0.34]
[1720040737022,17.8116,140.36,140.28,0.34]
[1720040737238,7.1262,140.33,140.28,0.34]
[1720040737740,7.1262,140.33,140.28,7.4684]
[1720040738051,7.1257,140.34,140.28,7.4684]
[1720040738423,20.0,140.33,140.28,7.4684]
[1720040738626,20.0,140.33,140.29,7.1279]
[1720040738934,27.1262,140.33,140.3,0.34]
[1720040739321,27.1262,140.33,140.29,0.34]
[1720040739521,20.0,140.33,140.29,0.34]
[1720040740251,20.0,140.33,140.29,7.4678]
[1720040740623,20.0,140.33,140.29,0.34]
[1720040741148,27.126,140.33,140.29,0.34]
[1720040741446,20.0,140.33,140.29,7.468]
[1720040741633,12.95026586,140.38,140.3,39.2182]
[1720040741839,20.07416586,140.38,140.31,0.34]
[1720040742026,12.95026586,140.38,140.34,7.1252]
[1720040742231,12.95026586,140.38,140.35,0.34]
[1720040742445,12.95026586,140.38,140.36,7.1244]
[1720040742646,5.54658706,140.38,140.37,0.17]
[1720040742830,7.40142876,140.41,140.29,21.7682]
[1720040743425,7.1247,140.36,140.3,7.1275]
[1720040744154,7.1247,140.36,140.31,7.127]
[1720040744345,7.1247,140.36,140.32,0.17]
[1720040744747,17.8083,140.39,140.32,0.17]
[1720040744955,7.1252,140.35,140.32,0.17]
[1720040745451,7.1247,140.36,140.32,0.17]
[1720040745856,7.1247,140.36,140.31,0.34]
[1720040746463,20.0,140.38,140.32,0.17]
[1720040746464,7.125,140.35,140.32,0.17]
[1720040746660,7.1247,140.36,140.3,7.4674]
[1720040747464,7.1252,140.35,140.3,7.4675]
[1720040748653,20.0,140.38,140.3,0.34]
[1720040748951,20.0,140.38,140.3,7.4673]
[1720040749452,7.1247,140.36,140.3,7.4673]
[1720040749754,7.1247,140.36,140.31,7.1269]
[1720040749951,7.1247,140.36,140.32,0.34]
[1720040750769,7.1247,140.36,140.33,0.17]
[1720040751059,7.125,140.35,140.31,0.34]
[1720040751358,7.1247,140.36,140.31,0.34]
[1720040751655,7.1247,140.36,140.31,7.467]
[1720040752065,7.1242,140.37,140.31,7.467]
[1720040752243,30.82,140.4,140.31,0.34]
[1720040752440,20.0,140.39,140.3,0.34]
[1720040752639,20.0,140.39,140.33,24.9407]
[1720040752640,7.1236,140.38,140.33,24.9407]
[1720040752859,7.1236,140.38,140.34,0.34]
[1720040753163,20.0,140.37,140.34,0.34]
[1720040753369,13.15073526,140.41,140.36,17.8109]
[1720040753569,5.7493065,140.41,140.39,7.1228]
[1720040753736,7.121,140.43,140.4,0.34]
[1720040754257,7.121,140.43,140.4,0.17]
[1720040754456,7.121,140.43,140.39,0.34]
[1720040755536,7.122,140.41,140.35,17.8117]
[1720040755735,30.82,140.43,140.34,7.1254]
[1720040755968,7.1252,140.35,140.33,22.3415]
[1720040756173,7.1246,140.36,140.33,22.3415]
[1720040756465,7.1246,140.36,140.33,16.0725]
[1720040756656,17.8048,140.42,140.33,16.0725]
[1720040756856,7.1235,140.38,140.33,23.1983]
[1720040757035,20.0,140.37,140.33,16.0725]
[1720040757866,30.82,140.43,140.33,41.0127]
[1720040758035,7.1241,140.37,140.33,16.0725]
[1720040758236,7.1241,140.37,140.34,0.17]
[1720040758453,7.1237,140.38,140.34,0.34]
[1720040758666,7.123,140.39,140.34,0.34]
[1720040758850,20.0,140.38,140.3,6.269]
[1720040759055,7.1247,140.36,140.3,6.269]
[1720040759275,7.1247,140.36,140.3,13.3964]
[1720040759445,20.0,140.35,140.3,13.3964]
[1720040759646,20.0,140.35,140.31,7.1269]
[1720040760151,7.1241,140.37,140.31,7.1269]
[1720040760367,20.0,140.36,140.32,0.34]
[1720040760568,27.1246,140.36,140.32,0.34]
[1720040760866,7.1257,140.34,140.32,0.34]
[1720040761094,7.1257,140.34,140.31,0.34]
[1720040761370,20.0,140.36,140.31,7.4667]
[1720040761569,20.0,140.35,140.31,7.4667]
[1720040761773,7.1246,140.36,140.31,0.34]
[1720040761942,20.0,140.35,140.31,0.34]
[1720040762142,27.1251,140.35,140.31,0.34]
[1720040762362,7.1255,140.34,140.31,0.34]
[1720040762867,20.0,140.35,140.31,0.34]
[1720040763073,7.1249,140.36,140.31,0.34]
[1720040763573,7.1239,140.38,140.32,7.1262]
[1720040763759,7.1226,140.4,140.33,18.155]
[1720040764467,36.47022505,140.43,140.33,0.34]
[1720040764677,7.1248,140.36,140.33,0.34]
[1720040764970,7.1242,140.37,140.34,0.17]
[1720040765172,7.1237,140.38,140.32,7.4664]
[1720040765552,7.1242,140.37,140.32,7.4664]
[1720040766551,7.1237,140.38,140.32,7.4664]
[1720040767875,27.36,140.36,140.32,7.4664]
[1720040769582,27.36,140.36,140.33,7.1259]
[1720040769758,27.36,140.36,140.34,0.34]
[1720040770166,7.1238,140.38,140.34,0.34]
[1720040770366,27.36,140.37,140.35,0.17]
[1720040770589,27.36,140.37,140.3,6.269]
[1720040770765,27.36,140.31,140.29,16.0725]
[1720040771387,27.36,140.31,140.28,24.9487]
[1720040771551,27.36,140.36,140.26,6.6165]
[1720040771552,17.8072,140.4,140.3,17.8184]
[1720040771757,27.36,140.34,140.31,7.1269]
[1720040771973,27.36,140.34,140.3,17.8184]
[1720040772290,27.36,140.32,140.29,7.1277]
[1720040772694,27.36,140.32,140.28,7.1284]
[1720040773799,34.4855,140.34,140.25,15.2114]
[1720040773800,27.36,140.29,140.25,15.2114]
[1720040774008,27.36,140.27,140.25,15.2114]
[1720040774505,27.36,140.27,140.23,31.3087]
[1720040774897,27.36,140.27,140.24,7.1305]
[1720040775597,27.36,140.27,140.25,7.1301]
[1720040775796,27.36,140.34,140.26,7.2992]
[1720040775997,27.36,140.29,140.26,0.17]
[1720040776377,27.36,140.29,140.26,0.34]
[1720040777677,27.36,140.29,140.27,7.1287]
[1720040777880,47.36,140.33,140.28,0.34]
[1720040778195,34.487,140.31,140.28,0.34]
[1720040779207,34.487,140.31,140.29,0.17]
[1720040779377,27.36,140.31,140.27,0.34]
[1720040779875,27.36,140.31,140.27,7.469]
[1720040780075,27.36,140.31,140.27,0.34]
[1720040780719,34.4873,140.31,140.27,0.34]
[1720040781814,27.36,140.31,140.23,6.3506]
[1720040782013,27.36,140.28,140.25,7.13]
[1720040782504,27.36,140.28,140.26,7.1295]
[1720040782682,47.36,140.3,140.25,7.1299]
[1720040782884,47.36,140.3,140.26,7.1295]
[1720040783316,47.36,140.3,140.27,0.34]
[1720040783610,47.36,140.3,140.26,0.34]
[1720040784392,54.4876,140.3,140.26,0.34]
[1720040786181,20.0,140.3,140.27,7.1288]
[1720040786482,34.4865,140.32,140.28,0.34]
[1720040786691,34.4865,140.32,140.29,0.17]
[1720040786892,20.0,140.31,140.26,25.2931]
[1720040787122,7.1261,140.33,140.26,139.5638]
[1720040787611,7.1255,140.34,140.28,33.5322]
[1720040787786,5.74209981,140.37,140.29,0.34]
[1720040787987,34.4846,140.36,140.31,13.5723]
[1720040788185,17.8071,140.4,140.32,0.34]
[1720040788186,7.1235,140.38,140.32,0.34]
[1720040788409,34.4833,140.39,140.33,7.126]
[1720040788623,7.1233,140.39,140.33,7.1257]
[1720040788901,34.4833,140.39,140.34,0.34]
[1720040789484,7.1235,140.38,140.34,0.34]
[1720040789686,7.1235,140.38,140.35,0.17]
[1720040789916,7.1229,140.4,140.34,7.1252]
[1720040790115,47.36,140.39,140.35,0.34]
[1720040790703,7.1236,140.38,140.35,0.34]
[1720040791020,54.483,140.39,140.36,0.17]
[1720040791213,54.483,140.39,140.34,0.34]
[1720040791704,47.36,140.39,140.34,7.4652]
[1720040792487,47.36,140.39,140.35,7.1249]
[1720040792688,47.36,140.39,140.36,0.34]
[1720040793098,20.0,140.39,140.36,0.34]
[1720040793302,27.36,140.38,140.36,0.34]
[1720040793512,34.4838,140.38,140.36,0.34]
[1720040793710,27.36,140.38,140.36,0.34]
[1720040794227,27.36,140.38,140.37,0.17]
[1720040794521,27.36,140.38,140.35,0.34]
[1720040794733,20.0,140.39,140.36,7.1245]
[1720040794900,7.1226,140.4,140.37,0.34]
[1720040795089,7.1226,140.4,140.35,18.1522]
[1720040795090,34.4826,140.4,140.35,18.1522]
[1720040795288,27.36,140.4,140.35,18.1522]
[1720040795520,7.122,140.41,140.36,7.1243]
[1720040795724,34.482,140.41,140.37,0.34]
[1720040796013,20.0,140.4,140.37,0.34]
[1720040796188,27.1226,140.4,140.37,0.34]
[1720040796390,27.1226,140.4,140.36,0.34]
[1720040797590,20.0,140.4,140.36,0.34]
[1720040798114,20.0,140.4,140.36,7.4644]
[1720040798423,34.4816,140.42,140.36,25.2756]
[1720040798633,20.0,140.41,140.37,7.1238]
[1720040798793,7.1211,140.43,140.38,7.4634]
[1720040799132,7.1211,140.43,140.38,7.2934]
[1720040799290,7.1211,140.43,140.39,0.17]
[1720040799787,34.4815,140.42,140.39,0.17]
[1720040800216,7.122,140.41,140.39,0.17]
[1720040800390,34.4816,140.42,140.39,0.17]
[1720040801040,34.4816,140.42,140.35,16.0957]
[1720040801041,27.36,140.42,140.35,16.0957]
[1720040801324,27.36,140.42,140.31,22.5411]
[1720040801325,27.36,140.38,140.31,22.5411]
[1720040801491,27.36,140.38,140.34,7.1251]
[1720040801693,27.36,140.38,140.35,7.1249]
[1720040801988,27.36,140.38,140.34,24.939]
[1720040802191,27.36,140.38,140.35,7.1249]
[1720040802402,27.36,140.38,140.36,7.1244]
[1720040802599,27.36,140.4,140.37,0.17]
[1720040802821,27.36,140.4,140.37,0.34]
[1720040803125,20.0,140.39,140.37,0.34]
[1720040803992,20.0,140.39,140.36,0.34]
[1720040804431,20.0,140.39,140.35,0.34]
[1720040804598,20.0,140.39,140.35,7.4647]
[1720040804995,20.0,140.39,140.36,7.1244]
[1720040805196,20.0,140.39,140.37,0.34]
[1720040805726,20.0,140.39,140.37,7.4638]
[1720040805919,7.1211,140.43,140.37,7.4638]
[1720040806122,47.36,140.42,140.37,7.4638]
[1720040806324,54.4815,140.42,140.37,7.4638]
[1720040807004,7.1203,140.45,140.38,32.991]
[1720040807198,7.1201,140.45,140.4,7.1221]
[1720040807512,34.4801,140.45,140.41,0.17]
[1720040807707,7.1214,140.42,140.41,0.17]
[1720040807925,5.66144253,140.46,140.39,0.34]
[1720040807926,34.481,140.43,140.39,0.34]
[1720040808114,34.481,140.43,140.38,0.17]
[1720040808422,34.4806,140.44,140.39,7.1229]
[1720040808631,34.4806,140.44,140.4,0.34]
[1720040809126,20.0,140.43,140.4,0.34]
[1720040809297,27.1211,140.43,140.41,0.34]
[1720040809503,27.1211,140.43,140.39,0.34]
[1720040809745,27.1211,140.43,140.33,7.1255]
[1720040809746,20.0,140.43,140.33,7.1255]
[1720040810031,20.0,140.43,140.31,42.0793]
[1720040810032,27.36,140.38,140.32,15.183]
[1720040810320,7.124,140.37,140.32,22.3094]
[1720040810503,34.4837,140.38,140.32,22.3094]
[1720040810709,27.36,140.36,140.32,22.3094]
[1720040811030,27.36,140.36,140.33,7.1258]
[1720040811704,27.36,140.4,140.32,15.183]
[1720040811924,27.36,140.4,140.35,24.9371]
[1720040812103,20.0,140.39,140.35,17.8124]
[1720040812415,35.12106107,140.54,140.39,17.8073]
[1720040812416,34.4807,140.44,140.39,17.8073]
[1720040812614,7.121,140.43,140.39,17.8073]
[1720040812820,7.1219,140.41,140.35,7.1247]
[1720040813121,34.4819,140.41,140.35,7.1247]
[1720040813317,34.4819,140.41,140.36,0.34]
[1720040813520,27.36,140.41,140.36,7.4643]
[1720040813710,27.36,140.41,140.37,7.1239]
[1720040813902,27.36,140.41,140.38,7.4635]
[1720040814106,27.36,140.41,140.38,7.2935]
[1720040814304,27.36,140.41,140.39,0.17]
[1720040814613,27.36,140.43,140.39,0.17]
[1720040814816,27.36,140.43,140.39,7.2928]
[1720040815022,20.0,140.42,140.4,0.17]
[1720040815433,7.121,140.43,140.4,0.17]
[1720040815607,27.121,140.43,140.39,0.34]
[1720040815808,20.0,140.43,140.39,7.4627]
[1720040816322,27.36,140.44,140.39,7.4627]
[1720040816623,20.0,140.43,140.39,7.4627]
[1720040817007,20.0,140.43,140.39,0.34]
[1720040818846,47.36,140.43,140.39,0.34]
[1720040819601,20.0,140.43,140.39,0.34]
[1720040819798,47.36,140.43,140.39,0.34]
[1720040820750,7.1231,140.39,140.33,7.1257]
[1720040820910,27.36,140.36,140.28,15.8917]
[1720040821232,7.1249,140.36,140.28,15.8917]
[1720040821533,27.36,140.4,140.36,7.124]
[1720040821735,7.1213,140.43,140.37,7.1239]
[1720040822049,22.5173,140.44,140.34,6.6274]
[1720040822050,47.36,140.42,140.34,6.6274]
[1720040822335,34.4825,140.4,140.35,7.2946]
[1720040822535,20.0,140.39,140.36,0.17]
[1720040823306,34.4815,140.42,140.37,7.1238]